[Event "WYCC 2018 G16"]
[Site "Halkidiki"]
[Date "2018.10.23"]
[Round "5"]
[White "Maltsevskaya, Aleksandra"]
[Black "Cervantes Landeiro, Thalia"]
[Result "1/2-1/2"]
[ECO "A09"]
[WhiteElo "2290"]
[BlackElo "2129"]
[Annotator "NA"]
[PlyCount "93"]
[EventDate "2018.10.20"]
[EventType "swiss"]
[EventCountry "GRE"]
[SourceTitle "playchess.com"]
[Source "ChessBase"]
[SourceQuality "1"]
[TimeControl "40/5400+30:1800+30"]

1. Nf3 {[%emt 0:00:00]} d5 {[%emt 0:00:00]} 2. c4 {[%emt 0:01:35]} d4 {[%emt 0:00:00]} 3. g3 {[%emt 0:04:08]} c5 {[%emt 0:00:10]} 4. b4 {[%emt 0:02:29]} cxb4 {[%emt 0:03:22]} 5. a3 {[%emt 0:01:08]} bxa3 {[%emt 0:01:55]} 6. Bg2 {[%emt 0:00:14]} Nc6 {[%emt 0:00:48]} 7. Bxa3 {[%emt 0:03:23]} Nf6 {[%emt 0:01:28] A09: Reti-Eröffnung} (7... e5 8. Bxf8 Kxf8 9. d3 g6 10. O-O Kg7 11. Nbd2 Nf6 12. Qb3 h6 13. Qb2 Re8 14. Ra3 Re7 15. e3 dxe3 16. fxe3 {½-½ (31) So,W (2788)-Adams,M (2715) London 2017}) 8. O-O {[%emt 0:03:53]} g6 {[%emt 0:00:24]} 9. d3 {[%emt 0:00:14]} Bg7 {[%emt 0:00:20]} 10. Nbd2 {[%emt 0:00:06]} O-O {[%emt 0:06:18] LiveBook: 17 Games} 11. Nb3 {[%emt 0:00:44]} Re8 {[%emt 0:04:05]} 12. Nc5 {[%emt 0:04:26]} Rb8 {[%emt 0:14:05]} 13. Nd2 {[%emt 0:11:11]} Qc7 $146 {[%emt 0:02:45]} 14. Qa4 {[%emt 0:01:25]} Nd7 {[%emt 0:09:20]} 15. Na6 {[%emt 0:07:56]} bxa6 {[%emt 0:02:39]} 16. Qxc6 {[%emt 0:00:10]} Qd8 {[%emt 0:03:30]} 17. Qa4 {[%emt 0:01:23]} Bh6 {[%emt 0:13:10]} 18. Ne4 $14 {[%emt 0:14:40]} Bb7 {[%emt 0:07:01]} 19. Rfb1 {[%emt 0:09:53]} Qc8 {[%emt 0:10:57]} 20. Qa5 {[%emt 0:05:53]} Bg7 {[%emt 0:04:45]} 21. Bc1 {[%emt 0:10:49]} Be5 {[%emt 0:03:30]} 22. Ba3 {[%emt 0:06:42]} Bg7 {[%emt 0:02:30]} 23. Rb2 {[%emt 0:02:34]} Bc6 {[%emt 0:06:13]} 24. Rab1 {[%emt 0:03:02]} Rb6 {[%emt 0:01:04]} 25. Nc5 {[%emt 0:02:38]} Bxg2 {[%emt 0:00:51]} 26. Kxg2 {[%emt 0:00:22]} Qc6+ {[%emt 0:01:03]} 27. f3 {[%emt 0:00:50]} Nxc5 {[%emt 0:00:32]} 28. Qxc5 {[%emt 0:00:35]} Qe6 {[%emt 0:00:22]} 29. Kf2 {[%emt 0:01:14]} Reb8 {[%emt 0:00:45]} 30. Rxb6 {[%emt 0:00:17]} Rxb6 {[%emt 0:00:10]} 31. Ra1 {[%emt 0:01:00]} Bf6 {[%emt 0:00:52]} 32. Bc1 {[%emt 0:00:32]} Qc6 {[%emt 0:00:32]} 33. Qa5 {[%emt 0:00:33]} Kg7 {[%emt 0:00:20]} 34. Bf4 {[%emt 0:00:29]} e6 {[%emt 0:00:42]} 35. Be5 {[%emt 0:00:22]} Qc8 {[%emt 0:00:28]} 36. Bxf6+ Kxf6 {[%emt 0:00:02]} 37. h4 {[%emt 0:01:09]} Qc7 {[%emt 0:00:30]} 38. Qg5+ {[%emt 0:00:27]} Kg7 {[%emt 0:00:01]} 39. Ra5 {[%emt 0:00:30]} h6 {[%emt 0:00:19]} 40. Qg4 {[%emt 0:00:00]} Rd6 {[%emt 0:00:00]} 41. Ra2 {[%emt 0:03:33]} Qc5 {[%emt 0:06:45]} 42. Qf4 {[%emt 0:03:37]} Rb6 {[%emt 0:02:34]} 43. Qd2 {[%emt 0:01:13]} Qf5 {[%emt 0:04:11]} 44. Kg2 {[%emt 0:03:50]} Qe5 {[%emt 0:01:49]} 45. Kf2 {[%emt 0:04:50]} Qf5 {[%emt 0:02:28]} 46. Kg2 {[%emt 0:05:40]} Qe5 {[%emt 0:00:55]} 47. Kf2 {[%emt 0:00:42]} 1/2-1/2

[Event "WYCC 2018 G16"]
[Site "Halkidiki"]
[Date "2018.10.23"]
[Round "5"]
[White "Muetsch, Annmarie"]
[Black "Nestorovic, Katarina"]
[Result "1-0"]
[ECO "B80"]
[WhiteElo "2206"]
[BlackElo "2015"]
[Annotator "NA"]
[PlyCount "87"]
[EventDate "2018.10.20"]
[EventType "swiss"]
[EventCountry "GRE"]
[SourceTitle "playchess.com"]
[Source "ChessBase"]
[SourceQuality "1"]
[TimeControl "40/5400+30:1800+30"]

1. e4 {[%emt 0:00:00]} c5 {[%emt 0:00:00]} 2. Nf3 {[%emt 0:00:00]} e6 {[%emt 0:00:00]} 3. d4 {[%emt 0:00:00]} cxd4 {[%emt 0:00:00]} 4. Nxd4 {[%emt 0:00:00]} Nf6 {[%emt 0:00:00]} 5. Nc3 {[%emt 0:00:00]} d6 {[%emt 0:00:03] LiveBook: 12461 Games} 6. Be3 {[%emt 0:00:11]} a6 {[%emt 0:00:27]} 7. g4 {[%emt 0:00:19]} b5 {[%emt 0:01:43]} 8. g5 {[%emt 0:00:13]} Nfd7 {[%emt 0:00:14]} 9. h4 {[%emt 0:02:02]} Bb7 {[%emt 0:00:34]} 10. Bg2 {[%emt 0:00:30]} Nc6 {[%emt 0:00:29]} 11. Qh5 {[%emt 0:07:58]} g6 {[%emt 0:01:48]} 12. Qe2 {[%emt 0:00:28]} h6 {[%emt 0:03:29]} 13. O-O-O {[%emt 0:06:48]} b4 {[%emt 0:19:49] [#]} 14. Nb1 $11 {[%emt 0:03:25]} (14. Nd5 $1 $16) 14... hxg5 {[%emt 0:05:52]} 15. hxg5 {[%emt 0:18:02]} Nxd4 {[%emt 0:03:29]} 16. Rxd4 {[%emt 0:00:10]} Rxh1+ {[%emt 0:01:06]} 17. Bxh1 {[%emt 0:00:03]} a5 {[%emt 0:04:49]} 18. f4 {[%emt 0:01:53]} Qc7 {[%emt 0:04:58]} 19. a3 {[%emt 0:10:01]} Ba6 {[%emt 0:06:00]} 20. Qh2 {[%emt 0:03:01]} Nc5 {[%emt 0:04:20]} 21. Kd1 {[%emt 0:09:33]} Bg7 {[%emt 0:02:27]} 22. axb4 {[%emt 0:05:11]} Na4 {[%emt 0:13:05]} 23. e5 {[%emt 0:14:03]} dxe5 {[%emt 0:03:17]} 24. fxe5 {[%emt 0:00:04]} Bxe5 {[%emt 0:02:14]} 25. Bf4 {[%emt 0:00:33]} Rd8 {[%emt 0:01:51]} 26. Bxe5 {[%emt 0:00:49]} Rxd4+ {[%emt 0:01:01]} 27. Ke1 {[%emt 0:01:16]} Qc4 {[%emt 0:02:56]} 28. Bxd4 {[%emt 0:01:10]} Qxd4 {[%emt 0:00:51]} 29. Bc6+ {[%emt 0:02:08]} Kf8 {[%emt 0:01:16]} 30. Bxa4 {[%emt 0:00:49]} Qe3+ {[%emt 0:00:31]} 31. Kd1 {[%emt 0:00:11]} Qf3+ {[%emt 0:01:28]} 32. Kd2 {[%emt 0:03:25]} Qd5+ {[%emt 0:00:04]} 33. Kc1 {[%emt 0:01:13]} Qxg5+ {[%emt 0:00:17]} 34. Nd2 {[%emt 0:00:05]} Kg7 {[%emt 0:01:04]} 35. bxa5 {[%emt 0:01:09]} Qxa5 {[%emt 0:00:06]} 36. b3 {[%emt 0:00:14]} Qc3 {[%emt 0:00:19]} 37. Nb1 {[%emt 0:01:43]} Qe3+ {[%emt 0:00:50]} 38. Qd2 {[%emt 0:00:46]} Qg1+ {[%emt 0:00:30]} 39. Kb2 {[%emt 0:00:05]} Qf1 {[%emt 0:01:22]} 40. Qd4+ {[%emt 0:00:00]} Kh7 {[%emt 0:00:00]} 41. Nd2 {[%emt 0:01:09]} Qf5 {[%emt 0:01:22]} 42. Ne4 {[%emt 0:03:03]} e5 {[%emt 0:01:03]} 43. Qd5 {[%emt 0:00:11]} Kg7 {[%emt 0:00:52]} 44. Be8 {[%emt 0:02:31]} 1-0

[Event "WYCC 2018 G16"]
[Site "Halkidiki"]
[Date "2018.10.23"]
[Round "5"]
[White "Makhija, Aashna"]
[Black "Sosa Suarez, Carla Cristina"]
[Result "1-0"]
[ECO "C50"]
[WhiteElo "2197"]
[BlackElo "2025"]
[Annotator "NA"]
[PlyCount "81"]
[EventDate "2018.10.20"]
[EventType "swiss"]
[EventCountry "GRE"]
[SourceTitle "playchess.com"]
[Source "ChessBase"]
[SourceQuality "1"]
[TimeControl "40/5400+30:1800+30"]

1. e4 {[%emt 0:00:00]} e5 {[%emt 0:00:00]} 2. Nf3 {[%emt 0:00:00]} Nc6 {[%emt 0:00:00]} 3. Bc4 {[%emt 0:00:14]} Nf6 {[%emt 0:00:00]} 4. d3 {[%emt 0:00:08]} Bc5 {[%emt 0:00:00]} 5. O-O {[%emt 0:00:26]} O-O {[%emt 0:00:21]} 6. a4 {[%emt 0:00:57]} h6 {[%emt 0:02:48]} 7. c3 {[%emt 0:06:22]} a5 {[%emt 0:02:58] LiveBook: 10 Games} 8. d4 {[%emt 0:04:54]} Bb6 {[%emt 0:02:02]} 9. dxe5 {[%emt 0:22:11]} Nxe4 {[%emt 0:02:31]} 10. Bd5 $11 {[%emt 0:08:10]} Nxf2 {[%emt 0:03:03]} 11. Rxf2 {[%emt 0:02:48]} d6 {[%emt 0:02:33]} 12. Bxc6 {[%emt 0:10:31]} bxc6 {[%emt 0:02:16]} 13. exd6 {[%emt 0:00:51]} Bg4 {[%emt 0:04:31]} 14. Bf4 {[%emt 0:07:13]} Qf6 {[%emt 0:23:37]} 15. Bg3 {[%emt 0:01:58]} Rab8 {[%emt 0:01:28]} 16. dxc7 {[%emt 0:07:27]} Bxf2+ {[%emt 0:01:27]} 17. Bxf2 {[%emt 0:00:29]} Rxb2 {[%emt 0:01:10]} 18. Nbd2 {[%emt 0:08:03]} Qe7 {[%emt 0:06:33]} 19. Nc4 {[%emt 0:03:59]} Re2 {[%emt 0:02:56]} 20. Bg3 {[%emt 0:06:07]} Qe4 {[%emt 0:02:33]} 21. Ncd2 {[%emt 0:04:28]} Qe3+ {[%emt 0:01:42]} 22. Kh1 {[%emt 0:01:59]} f5 {[%emt 0:02:12]} 23. Bd6 {[%emt 0:01:27]} Re8 {[%emt 0:01:54]} 24. h3 {[%emt 0:00:40]} Bh5 {[%emt 0:01:46]} 25. Rb1 {[%emt 0:00:30]} Qd3 {[%emt 0:15:23]} 26. Bf4 {[%emt 0:00:25]} Kh7 {[%emt 0:01:49]} 27. Rb8 {[%emt 0:00:33]} Bxf3 {[%emt 0:01:13]} 28. Rxe8 {[%emt 0:00:23]} Bxg2+ {[%emt 0:01:17]} 29. Kg1 {[%emt 0:00:10]} Rxe8 {[%emt 0:00:56]} 30. Kxg2 {[%emt 0:00:26]} g5 {[%emt 0:00:42]} 31. Qh5 {[%emt 0:01:03]} Qd5+ {[%emt 0:02:17]} 32. Kf2 {[%emt 0:00:30]} Qc5+ {[%emt 0:01:52]} 33. Kf1 {[%emt 0:00:26]} Qe7 {[%emt 0:00:40]} 34. Bg3 {[%emt 0:00:35]} f4 {[%emt 0:00:39]} 35. Bf2 {[%emt 0:00:18]} Qe6 {[%emt 0:00:39]} 36. Qf3 {[%emt 0:00:37]} Qd6 {[%emt 0:01:10]} 37. Ne4 {[%emt 0:00:26]} Qe6 {[%emt 0:00:12]} 38. Qd3 {[%emt 0:00:19]} Kg8 {[%emt 0:02:14]} 39. Nd6 {[%emt 0:00:36]} f3 {[%emt 0:02:20]} 40. Nxe8 {[%emt 0:00:00]} Qxh3+ {[%emt 0:00:00]} 41. Ke1 {[%emt 0:00:23]} 1-0

[Event "WYCC 2018 G16"]
[Site "Halkidiki"]
[Date "2018.10.23"]
[Round "5"]
[White "Hilario, Aleyla"]
[Black "Kucharska, Honorata"]
[Result "1/2-1/2"]
[ECO "A70"]
[WhiteElo "2175"]
[BlackElo "2073"]
[Annotator "NA"]
[PlyCount "50"]
[EventDate "2018.10.20"]
[EventType "swiss"]
[EventCountry "GRE"]
[SourceTitle "playchess.com"]
[Source "ChessBase"]
[SourceQuality "1"]
[TimeControl "40/5400+30:1800+30"]

1. d4 {[%emt 0:03:38]} Nf6 {[%emt 0:00:00]} 2. c4 {[%emt 0:00:05]} c5 {[%emt 0:00:00]} 3. d5 {[%emt 0:04:36]} e6 {[%emt 0:00:15]} 4. Nc3 {[%emt 0:00:04]} exd5 {[%emt 0:00:19]} 5. cxd5 {[%emt 0:00:04]} d6 {[%emt 0:00:07]} 6. e4 {[%emt 0:00:38]} g6 {[%emt 0:01:13]} 7. Nf3 {[%emt 0:00:52]} Bg7 {[%emt 0:01:05]} 8. Bd3 {[%emt 0:04:47]} a6 {[%emt 0:02:38]} 9. a4 {[%emt 0:00:19]} Bg4 {[%emt 0:00:37]} 10. Bf4 {[%emt 0:03:00]} O-O {[%emt 0:02:44]} 11. h3 {[%emt 0:00:14]} Bxf3 {[%emt 0:00:19]} 12. Qxf3 {[%emt 0:00:02]} Qe7 {[%emt 0:03:10]} 13. O-O {[%emt 0:00:08]} Nbd7 $11 {[%emt 0:00:10]} 14. Qe2 {[%emt 0:09:20]} Ne5 {[%emt 0:07:04]} 15. Bc2 {[%emt 0:01:48]} Nfd7 {[%emt 0:12:28]} 16. Bh2 {[%emt 0:05:20]} c4 {[%emt 0:05:56]} 17. f4 {[%emt 0:05:14]} Nd3 {[%emt 0:00:08]} 18. Bxd3 {[%emt 0:02:31]} cxd3 {[%emt 0:00:06]} 19. Qf3 {[%emt 0:02:15]} Nc5 {[%emt 0:05:47]} 20. Rae1 {[%emt 0:01:37]} d2 {[%emt 0:03:59]} 21. Re2 {[%emt 0:01:15]} Nb3 {[%emt 0:03:46]} 22. Qg3 {[%emt 0:00:02]} Rac8 {[%emt 0:05:53]} 23. e5 f5 {[%emt 0:04:38]} 24. Nd1 {[%emt 0:27:27]} Nc5 {[%emt 0:01:40]} 25. Nc3 {[%emt 0:05:51]} Nb3 {[%emt 0:05:17]} 1/2-1/2

[Event "WYCC 2018 G16"]
[Site "Halkidiki"]
[Date "2018.10.23"]
[Round "5"]
[White "Serikbay, Assel"]
[Black "Meenal Gupta"]
[Result "1-0"]
[ECO "A62"]
[WhiteElo "2166"]
[BlackElo "2065"]
[Annotator "NA"]
[PlyCount "89"]
[EventDate "2018.10.20"]
[EventType "swiss"]
[EventCountry "GRE"]
[SourceTitle "playchess.com"]
[Source "ChessBase"]
[SourceQuality "1"]
[TimeControl "40/5400+30:1800+30"]

1. d4 {[%emt 0:00:00]} Nf6 {[%emt 0:00:00]} 2. c4 {[%emt 0:00:00]} e6 {[%emt 0:00:00]} 3. g3 {[%emt 0:00:00]} c5 {[%emt 0:00:00]} 4. d5 {[%emt 0:00:00]} exd5 {[%emt 0:00:00] LiveBook: 2555 Games} 5. cxd5 {[%emt 0:00:10]} d6 {[%emt 0:00:04]} 6. Nc3 {[%emt 0:00:09]} g6 {[%emt 0:00:39]} 7. Bg2 {[%emt 0:00:11]} Bg7 {[%emt 0:00:15]} 8. Nf3 {[%emt 0:00:45]} O-O {[%emt 0:00:36]} 9. O-O {[%emt 0:00:11]} Re8 {[%emt 0:01:07]} 10. Bf4 {[%emt 0:00:41]} a6 {[%emt 0:01:58]} 11. a4 {[%emt 0:00:45]} Nh5 {[%emt 0:00:37]} 12. Bd2 {[%emt 0:04:51] A62: Modern Benoni: Fianchetto Variation without early ...Nbd7} Nd7 {[%emt 0:10:23]} 13. Qc1 $146 {[%emt 0:10:06]} ({Predecessor:} 13. e4 Ne5 14. Nxe5 Bxe5 15. a5 Bd7 16. Qb3 Rb8 17. Ra2 b5 18. axb6 Qxb6 19. Qxb6 Rxb6 {0-1 (33) Volokitin,A (2674)-Mastrovasilis,A (2554) Yerevan 2014}) 13... Rb8 {[%emt 0:05:44]} 14. a5 {[%emt 0:06:01]} b5 {[%emt 0:01:54]} 15. axb6 {[%emt 0:00:25]} Nxb6 {[%emt 0:02:44]} 16. Bg5 $11 {[%emt 0:08:25]} f6 {[%emt 0:08:39]} 17. Bh6 {[%emt 0:00:49]} Bxh6 {[%emt 0:04:31]} 18. Qxh6 {[%emt 0:00:06]} Nc4 {[%emt 0:00:08]} 19. Qc1 {[%emt 0:30:31]} Qb6 {[%emt 0:14:20]} 20. b3 {[%emt 0:07:19]} Ne5 {[%emt 0:04:52]} 21. Nd2 {[%emt 0:00:58]} f5 {[%emt 0:05:12]} 22. Nc4 {[%emt 0:05:37]} Nxc4 {[%emt 0:00:15]} 23. bxc4 {[%emt 0:00:04]} Bd7 {[%emt 0:02:52]} 24. Ra2 {[%emt 0:06:09]} a5 {[%emt 0:01:08]} 25. Qa1 {[%emt 0:01:29]} Qa6 {[%emt 0:05:19]} 26. Rxa5 {[%emt 0:01:38]} Qxc4 {[%emt 0:00:08]} 27. Ra6 {[%emt 0:02:04]} Rb3 {[%emt 0:05:25]} 28. Rc1 {[%emt 0:00:56]} Qb4 {[%emt 0:03:47]} 29. Bf3 {[%emt 0:04:24]} c4 {[%emt 0:05:38]} 30. Bxh5 {[%emt 0:01:23]} gxh5 {[%emt 0:00:02]} 31. Ra7 {[%emt 0:00:29]} Re7 {[%emt 0:00:08]} 32. e4 {[%emt 0:04:12]} f4 {[%emt 0:00:53]} 33. Ne2 {[%emt 0:01:01]} Qd2 {[%emt 0:03:09]} 34. Qf6 {[%emt 0:01:12]} fxg3 {[%emt 0:03:43]} 35. hxg3 {[%emt 0:02:25]} Qxe2 {[%emt 0:01:25]} 36. Qg5+ {[%emt 0:01:49]} Kf7 {[%emt 0:00:25]} 37. Qf4+ {[%emt 0:00:21]} Kg7 {[%emt 0:01:45]} 38. Qg5+ {[%emt 0:00:33]} Kf7 {[%emt 0:00:05]} 39. Qf4+ {[%emt 0:00:03]} Kg7 {[%emt 0:00:03]} 40. Qxd6 {[%emt 0:00:00]} Qxe4 {[%emt 0:00:00]} 41. Rxd7 {[%emt 0:01:16]} Rxd7 {[%emt 0:05:58]} 42. Qxd7+ {[%emt 0:00:05]} Kf6 {[%emt 0:02:07]} 43. Qc6+ {[%emt 0:06:49]} Ke5 {[%emt 0:07:57]} 44. Qe6+ {[%emt 0:00:14]} Kd4 {[%emt 0:00:05]} 45. Rxc4+ {[%emt 0:00:07]} 1-0

[Event "WYCC 2018 G16"]
[Site "Halkidiki"]
[Date "2018.10.23"]
[Round "5"]
[White "Peycheva, Gergana"]
[Black "Beydullayeva, Govhar"]
[Result "0-1"]
[ECO "E12"]
[WhiteElo "2152"]
[BlackElo "2202"]
[Annotator "ChessBase"]
[PlyCount "154"]
[EventDate "2018.10.20"]
[EventType "swiss"]
[EventCountry "GRE"]
[SourceTitle "playchess.com"]
[Source "ChessBase"]
[SourceQuality "1"]
[TimeControl "40/5400+30:1800+30"]

1. d4 {[%emt 0:00:00]} e6 {[%emt 0:00:00]} 2. c4 {[%emt 0:00:04]} Nf6 {[%emt 0:00:00]} 3. Nf3 {[%emt 0:01:08]} b6 {[%emt 0:00:54]} 4. a3 {[%emt 0:01:21]} Bb7 {[%emt 0:00:19]} 5. Nc3 {[%emt 0:04:19]} d5 {[%emt 0:01:08]} 6. cxd5 {[%emt 0:04:43]} Nxd5 {[%emt 0:00:04]} 7. e3 {[%emt 0:01:21]} Nxc3 {[%emt 0:00:47]} 8. bxc3 {[%emt 0:01:11]} g6 {[%emt 0:00:23]} 9. Bb5+ {[%emt 0:01:30]} c6 {[%emt 0:00:24]} 10. Bd3 {[%emt 0:00:53]} Bg7 {[%emt 0:00:34]} 11. O-O {[%emt 0:02:50]} O-O {[%emt 0:01:57]} 12. Qe2 {[%emt 0:01:57]} c5 {[%emt 0:05:22]} 13. Rd1 {[%emt 0:03:43]} Qc7 {[%emt 0:03:24]} 14. e4 {[%emt 0:08:17]} Nd7 {[%emt 0:07:36]} 15. Bg5 {[%emt 0:04:59]} Nf6 {[%emt 0:17:35]} 16. Bxf6 {[%emt 0:06:59]} Bxf6 {[%emt 0:04:01]} 17. Ba6 {[%emt 0:04:05]} Bxa6 {[%emt 0:16:26]} 18. Qxa6 {[%emt 0:00:44]} Rfd8 {[%emt 0:00:43]} 19. Qe2 {[%emt 0:06:16]} Rac8 {[%emt 0:01:32]} 20. e5 {[%emt 0:01:10]} Be7 {[%emt 0:01:15]} 21. a4 {[%emt 0:02:41]} cxd4 {[%emt 0:03:35]} 22. cxd4 {[%emt 0:00:53]} Qc4 {[%emt 0:03:01]} 23. Qe3 {[%emt 0:02:22]} Qd5 {[%emt 0:11:14]} 24. h4 {[%emt 0:04:21]} h5 {[%emt 0:04:55]} 25. Rdc1 {[%emt 0:03:37]} Kg7 {[%emt 0:01:51]} 26. Qe2 {[%emt 0:04:57]} Qb7 {[%emt 0:02:35]} 27. Qb2 {[%emt 0:04:23]} Rxc1+ {[%emt 0:00:44]} 28. Rxc1 {[%emt 0:01:38]} Rc8 {[%emt 0:00:28]} 29. Ra1 {[%emt 0:05:21]} Qe4 {[%emt 0:05:06]} 30. a5 {[%emt 0:06:50]} Rc2 {[%emt 0:00:45]} 31. Qb1 {[%emt 0:02:05]} Qe2 {[%emt 0:00:26]} 32. Qe1 {[%emt 0:00:19]} b5 {[%emt 0:00:40]} 33. Qxe2 {[%emt 0:03:02]} Rxe2 {[%emt 0:00:04]} 34. Kf1 {[%emt 0:00:45]} Rc2 {[%emt 0:00:26]} 35. a6 {[%emt 0:02:22]} b4 {[%emt 0:01:34]} 36. Rb1 {[%emt 0:01:52]} Rc6 {[%emt 0:00:48]} 37. Ke2 {[%emt 0:00:23]} Rxa6 {[%emt 0:00:15]} 38. g3 {[%emt 0:00:54]} Rc6 {[%emt 0:01:11]} 39. Nd2 {[%emt 0:00:39]} a5 {[%emt 0:01:24]} 40. Ra1 {[%emt 0:00:00]} Ra6 {[%emt 0:00:00]} 41. Ra4 {[%emt 0:01:05]} Kf8 {[%emt 0:09:44]} 42. Kd3 {[%emt 0:08:21]} Bd8 {[%emt 0:01:57]} 43. Nb3 {[%emt 0:02:13]} Ke7 {[%emt 0:00:39]} 44. f4 {[%emt 0:02:27]} Ra8 {[%emt 0:01:30]} 45. Nc5 {[%emt 0:03:17]} Bb6 {[%emt 0:02:37]} 46. Kc4 {[%emt 0:01:37]} Kd8 {[%emt 0:04:46]} 47. Nd3 {[%emt 0:02:15]} Rc8+ {[%emt 0:02:24]} 48. Nc5 {[%emt 0:00:46]} Kc7 {[%emt 0:01:19]} 49. Ne4 {[%emt 0:02:13]} Kc6 {[%emt 0:04:14]} 50. Ra1 {[%emt 0:03:58]} Kb7+ {[%emt 0:02:42]} 51. Nc5+ {[%emt 0:02:45]} Ka7 {[%emt 0:01:05]} 52. Ra2 {[%emt 0:00:44]} Rd8 {[%emt 0:01:09]} 53. Ra1 {[%emt 0:00:51]} Rc8 {[%emt 0:02:00]} 54. Ra2 {[%emt 0:00:17]} Bd8 {[%emt 0:00:15]} 55. Kb5 {[%emt 0:01:26]} Rb8+ {[%emt 0:03:54]} 56. Kc4 {[%emt 0:00:34]} Bc7 {[%emt 0:00:59]} 57. Ra4 {[%emt 0:02:09]} Rd8 {[%emt 0:00:46]} 58. Ra1 {[%emt 0:01:00]} Kb6 {[%emt 0:00:21]} 59. Nb3 {[%emt 0:00:54]} Ra8 {[%emt 0:00:05]} 60. Nc5 {[%emt 0:00:27]} Bd8 {[%emt 0:00:36]} 61. Na4+ {[%emt 0:01:09]} Kc6 {[%emt 0:00:37]} 62. Nc5 {[%emt 0:01:01]} Be7 {[%emt 0:00:20]} 63. Ra2 {[%emt 0:00:51]} Kb6 {[%emt 0:00:34]} 64. Nd7+ {[%emt 0:01:22]} Ka6 {[%emt 0:00:13]} 65. Nc5+ {[%emt 0:00:30]} Bxc5 {[%emt 0:00:12]} 66. dxc5 {[%emt 0:00:04]} Rd8 {[%emt 0:00:05]} 67. Rc2 {[%emt 0:01:06]} Rd1 {[%emt 0:00:18]} 68. c6 {[%emt 0:00:15]} Kb6 {[%emt 0:00:46]} 69. c7 {[%emt 0:00:14]} Kxc7 {[%emt 0:00:08]} 70. Kb5+ {[%emt 0:00:03]} Kd7 {[%emt 0:00:40]} 71. Kxa5 {[%emt 0:00:09]} b3 {[%emt 0:00:50]} 72. Rb2 {[%emt 0:00:25]} Rd3 {[%emt 0:00:17]} 73. Kb4 {[%emt 0:00:01]} Rxg3 {[%emt 0:00:10]} 74. Rxb3 {[%emt 0:00:05]} Rg4 {[%emt 0:00:14]} 75. Kc5 {[%emt 0:00:54]} Rxf4 {[%emt 0:01:14]} 76. Rb7+ {[%emt 0:00:05]} Ke8 {[%emt 0:00:03]} 77. Rb8+ {[%emt 0:00:39]} Ke7 {[%emt 0:00:05] Kd4} 0-1

[Event "WYCC 2018 G16"]
[Site "Halkidiki"]
[Date "2018.10.23"]
[Round "5"]
[White "Schulze, Lara"]
[Black "Skaslien, Ingrid"]
[Result "1-0"]
[ECO "B32"]
[WhiteElo "2122"]
[BlackElo "1885"]
[Annotator "NA"]
[PlyCount "97"]
[EventDate "2018.10.20"]
[EventType "swiss"]
[EventCountry "GRE"]
[SourceTitle "playchess.com"]
[Source "ChessBase"]
[SourceQuality "1"]
[TimeControl "40/5400+30:1800+30"]

1. e4 {[%emt 0:00:00]} c5 {[%emt 0:00:00]} 2. Nf3 {[%emt 0:00:00]} Nc6 {[%emt 0:00:09]} 3. d4 {[%emt 0:00:00]} cxd4 4. Nxd4 {[%emt 0:00:00]} e5 {[%emt 0:00:23]} 5. Nb5 {[%emt 0:00:00]} d6 {[%emt 0:00:11]} 6. N1c3 {[%emt 0:00:03]} a6 {[%emt 0:00:20]} 7. Na3 {[%emt 0:00:06]} b5 {[%emt 0:00:19]} 8. Nd5 {[%emt 0:00:05]} Nge7 {[%emt 0:00:17]} 9. c4 {[%emt 0:01:08]} Nd4 {[%emt 0:00:27]} 10. Be3 {[%emt 0:06:39]} Nxd5 {[%emt 0:00:35]} 11. cxd5 {[%emt 0:00:32]} g6 {[%emt 0:01:42]} 12. Bd3 {[%emt 0:10:06]} Bg7 {[%emt 0:00:36]} 13. O-O {[%emt 0:01:45]} O-O {[%emt 0:01:28]} 14. Nc2 $14 {[%emt 0:00:35] LiveBook: 11 Games} f5 {[%emt 0:05:58]} 15. f3 {[%emt 0:04:19]} Bd7 {[%emt 0:06:37]} 16. Rc1 {[%emt 0:03:58]} Rc8 {[%emt 0:06:32]} 17. Qd2 {[%emt 0:03:28]} f4 {[%emt 0:11:58]} 18. Bxd4 {[%emt 0:13:05]} exd4 {[%emt 0:00:12]} 19. Qf2 {[%emt 0:01:08]} Bf6 {[%emt 0:11:14]} 20. Nxd4 {[%emt 0:12:33]} Qb6 {[%emt 0:03:35]} 21. Nc6 {[%emt 0:02:51]} Rxc6 {[%emt 0:03:54]} 22. Rxc6 {[%emt 0:00:26]} Qxf2+ {[%emt 0:00:10]} 23. Kxf2 {[%emt 0:02:15]} Bxc6 {[%emt 0:00:06]} 24. dxc6 {[%emt 0:00:04]} Rc8 {[%emt 0:06:03]} 25. Rc1 {[%emt 0:11:52]} Bxb2 {[%emt 0:00:18]} 26. Rc2 {[%emt 0:00:02]} Bd4+ {[%emt 0:00:21]} 27. Ke2 {[%emt 0:06:12]} Kf7 {[%emt 0:02:11]} 28. a4 {[%emt 0:08:23]} bxa4 {[%emt 0:06:01]} 29. Bxa6 {[%emt 0:00:24]} Rc7 {[%emt 0:00:53]} 30. Rc4 {[%emt 0:01:12]} Bc5 {[%emt 0:05:04]} 31. Bb7 {[%emt 0:00:42]} a3 {[%emt 0:00:29]} 32. Ra4 {[%emt 0:02:39]} Ke6 {[%emt 0:05:27]} 33. Ra8 {[%emt 0:02:45]} Kf7 {[%emt 0:07:47]} 34. Kd3 {[%emt 0:00:30]} Ke7 {[%emt 0:02:14]} 35. Kc4 {[%emt 0:02:15]} Ke6 {[%emt 0:01:10]} 36. Re8+ {[%emt 0:03:13]} Kf7 {[%emt 0:00:19]} 37. Rh8 {[%emt 0:00:34]} Ke6 {[%emt 0:00:52]} 38. Ra8 {[%emt 0:00:20]} Re7 {[%emt 0:02:31]} 39. Bc8+ {[%emt 0:01:15]} Kf7 {[%emt 0:02:40]} 40. Bd7 {[%emt 0:00:00]} Bb6 {[%emt 0:00:00]} 41. Kb5 {[%emt 0:05:45]} Bc7 {[%emt 0:01:48]} 42. Rxa3 {[%emt 0:02:44]} Re5+ {[%emt 0:01:23]} 43. Ka6 {[%emt 0:01:17]} Rc5 {[%emt 0:02:11]} 44. Kb7 {[%emt 0:02:43]} Bd8 {[%emt 0:00:40]} 45. Kc8 {[%emt 0:01:24]} Bb6 {[%emt 0:04:07]} 46. Ra6 {[%emt 0:02:58]} Ba5 {[%emt 0:01:26]} 47. Rxa5 {[%emt 0:04:28]} Rxa5 {[%emt 0:00:07]} 48. c7 {[%emt 0:00:07]} Ra1 {[%emt 0:04:51]} 49. Kd8 {[%emt 0:00:17]} 1-0